bitfinex-derivatives/quotes_BTCF0:USTF0_20250325
["timestamp","ask_amount","ask_price","bid_price","bid_amount"]
[1742886279078,8e-05,86790.0,86789.0,0.1152081]
[1742886279373,0.1152868,86790.0,86789.0,0.15904247]
[1742886279578,0.1152068,86790.0,86789.0,0.26844247]
[1742886279765,0.1158868,86790.0,86789.0,0.28363675]
[1742886280172,0.1152068,86790.0,86789.0,0.28563675]
[1742886280364,0.1152047,86792.0,86791.0,0.1152041]
[1742886280567,0.1161333,86796.0,86795.0,0.1152001]
[1742886280867,0.0016918,86796.0,86795.0,0.51991447]
[1742886281068,0.0016918,86796.0,86795.0,0.62911447]
[1742886281069,0.0009318,86796.0,86795.0,0.62911447]
[1742886281277,0.1161306,86796.0,86795.0,0.64430875]
[1742886282572,0.1161306,86796.0,86795.0,0.64530875]
[1742886282772,0.1161306,86796.0,86795.0,0.61870298]
[1742886283365,0.1160506,86796.0,86795.0,0.61870298]
[1742886283571,0.1160506,86796.0,86795.0,0.64462617]
[1742886283975,0.1160506,86796.0,86795.0,0.64419659]
[1742886284172,0.1153706,86796.0,86795.0,0.64419659]
[1742886284378,0.1697506,86796.0,86795.0,0.61827523]
[1742886286678,0.1697506,86796.0,86795.0,0.60308095]
[1742886288179,0.1697506,86796.0,86795.0,0.60289955]
[1742886288375,0.1697506,86796.0,86795.0,0.61782528]
[1742886289279,0.1697506,86796.0,86795.0,0.50262518]
[1742886289487,0.2779506,86796.0,86795.0,0.50262518]
[1742886289686,0.2779506,86796.0,86795.0,0.61782528]
[1742886290276,0.2779506,86796.0,86795.0,0.61771545]
[1742886291083,0.0575891,86812.0,86795.0,0.61771545]
[1742886291084,0.3608,86827.0,86795.0,0.52775267]
[1742886291279,0.1071,86818.0,86803.0,0.4759895]
[1742886291474,0.1071,86818.0,86807.0,0.1151842]
[1742886291779,0.1151733,86817.0,86816.0,0.1151709]
[1742886291973,0.1151733,86817.0,86813.0,0.3608]
[1742886291974,0.1151749,86815.0,86813.0,0.3608]
[1742886292175,0.1151835,86808.0,86807.0,0.1151829]
[1742886292479,0.1151835,86808.0,86807.0,0.08873265]
[1742886292673,0.2770035,86808.0,86807.0,0.07093141]
[1742886292874,0.2770035,86808.0,86807.0,0.18611561]
[1742886293076,0.2770035,86808.0,86807.0,0.20187448]
[1742886293988,0.2770035,86808.0,86807.0,0.26991847]
[1742886294186,0.16182,86808.0,86807.0,0.23466274]
[1742886294389,0.16182,86808.0,86807.0,0.24563486]
[1742886294682,0.16182,86808.0,86807.0,0.2128466]
[1742886296482,0.16182,86808.0,86807.0,0.18560863]
[1742886296877,0.05402,86808.0,86807.0,0.18560863]
[1742886297078,0.0533,86808.0,86807.0,0.18560863]
[1742886297379,0.00068,86808.0,86807.0,0.21202288]
[1742886297579,0.1720776,86812.0,86811.0,0.1151789]
[1742886297879,0.1727976,86812.0,86811.0,0.13366013]
[1742886298081,0.1727976,86812.0,86811.0,0.00068]
[1742886298280,0.1727976,86812.0,86811.0,0.0328538]
[1742886298877,0.1727976,86812.0,86811.0,0.1480327]
[1742886299484,0.05762,86812.0,86811.0,0.1480327]
[1742886300281,0.00072,86812.0,86811.0,0.1480327]
[1742886300490,0.05462,86812.0,86811.0,0.1480327]
[1742886300779,0.1697976,86812.0,86811.0,0.0328538]
[1742886300989,0.1697576,86812.0,86811.0,0.0328538]
[1742886301383,0.05458,86812.0,86811.0,0.1480327]
[1742886301588,0.05458,86812.0,86811.0,0.1158589]
[1742886301589,0.0539,86812.0,86811.0,0.1158589]
[1742886301895,0.1697576,86812.0,86811.0,0.1158589]
[1742886303790,0.1697576,86812.0,86811.0,0.00068]
[1742886305095,0.00068,86812.0,86811.0,0.1677589]
[1742886305287,0.0571,86814.0,86813.0,0.1151762]
[1742886305485,0.05770001,86814.0,86813.0,0.1158562]
[1742886305686,0.00060001,86814.0,86813.0,0.1158562]
[1742886306394,0.05770001,86814.0,86813.0,0.1158562]
[1742886307592,0.17287491,86814.0,86813.0,0.1158562]
[1742886307893,0.17287491,86814.0,86813.0,0.00068]
[1742886308195,0.28097491,86814.0,86813.0,0.00068]
[1742886309989,0.1151816,86809.0,86808.0,0.0537]
[1742886310186,0.1159416,86809.0,86808.0,0.05442]
[1742886311094,0.2221416,86809.0,86808.0,0.05442]
[1742886311396,0.2221416,86809.0,86808.0,0.1696029]
[1742886311597,0.2221416,86809.0,86808.0,0.10692]
[1742886313085,0.2221416,86809.0,86808.0,0.2221029]
[1742886313290,0.1682416,86809.0,86808.0,0.2221029]
[1742886321211,0.00076,86809.0,86808.0,0.2221029]
[1742886321514,0.1151741,86815.0,86814.0,0.1151749]
[1742886321709,0.1158541,86815.0,86814.0,0.1158549]
[1742886322199,0.00068,86815.0,86814.0,0.2253549]
[1742886322812,0.00068,86815.0,86814.0,0.24053431]
[1742886323908,0.1158536,86815.0,86814.0,0.24053431]
[1742886324215,0.1689536,86815.0,86814.0,0.24053431]
[1742886324814,0.05378,86815.0,86814.0,0.24053431]
[1742886325117,0.1689536,86815.0,86814.0,0.24053431]
[1742886329323,0.1689536,86815.0,86814.0,0.12535941]
[1742886329613,0.2232536,86815.0,86814.0,0.2253549]
[1742886330320,0.1689536,86815.0,86814.0,0.2253549]
[1742886332423,0.1689536,86815.0,86814.0,0.11018]
[1742886332923,0.2252536,86815.0,86814.0,0.2253549]
[1742886333515,0.2252536,86815.0,86814.0,0.11018]
[1742886334414,0.1689536,86815.0,86814.0,0.2253549]
[1742886335423,0.1689536,86815.0,86814.0,0.12513237]
[1742886335623,0.2225536,86815.0,86814.0,0.24030727]
[1742886335816,0.2225536,86815.0,86814.0,0.2253549]
[1742886336021,0.2225536,86815.0,86814.0,0.24020625]
[1742886336321,0.2225536,86815.0,86814.0,0.2253549]
[1742886337016,0.1689536,86815.0,86814.0,0.2253549]
[1742886339330,0.1158536,86815.0,86814.0,0.2253549]
[1742886340429,0.1709536,86815.0,86814.0,0.12513409]
[1742886340616,0.2263536,86815.0,86814.0,0.11018]
[1742886340817,0.2263536,86815.0,86814.0,0.1095]
[1742886341018,0.1709536,86815.0,86814.0,0.11018]
[1742886341215,0.1158536,86815.0,86814.0,0.2253549]
[1742886341423,0.1158536,86815.0,86814.0,0.11018]
[1742886342522,0.1709536,86815.0,86814.0,0.2253549]
[1742886343028,0.1709536,86815.0,86814.0,0.11018]
[1742886343430,0.1709536,86815.0,86814.0,0.2253549]
[1742886343619,0.1709536,86815.0,86814.0,0.11018]
[1742886344915,0.1709536,86815.0,86814.0,0.2253549]
[1742886345134,0.1709536,86815.0,86814.0,0.11018]
[1742886345720,0.2219536,86815.0,86814.0,0.11018]
[1742886347422,0.2219536,86815.0,86814.0,0.05308]
[1742886347628,0.23295735,86815.0,86814.0,0.0524]
[1742886349231,0.1151816,86809.0,86808.0,0.0558]
[1742886349430,0.1158616,86809.0,86808.0,0.05652]
[1742886349624,0.1158616,86809.0,86808.0,0.00072]
[1742886349825,0.1701616,86809.0,86808.0,0.00072]
[1742886350021,0.1151829,86808.0,86807.0,0.20696825]
[1742886350227,0.1151829,86808.0,86807.0,0.20764825]
[1742886350228,0.5258629,86808.0,86807.0,0.20764825]
[1742886350529,0.5801629,86808.0,86807.0,0.20764825]
[1742886350732,0.5801629,86808.0,86801.0,1e-08]
[1742886350733,0.0575939,86805.0,86801.0,1e-08]
[1742886350938,0.1151988,86796.0,86795.0,0.0537]
[1742886351238,0.25580568,86796.0,86795.0,0.10984]
[1742886351424,0.2450388,86796.0,86795.0,0.10984]
[1742886351830,0.3554388,86796.0,86795.0,0.10984]
[1742886352134,0.24024,86796.0,86795.0,0.10984]
[1742886352725,0.24004,86796.0,86795.0,0.11084]
[1742886352925,0.18394,86796.0,86795.0,0.16374]
[1742886353139,0.12964,86796.0,86795.0,0.16374]
[1742886353435,0.12964,86796.0,86795.0,0.16474]
[1742886354531,0.00068,86796.0,86795.0,0.16474]
[1742886360535,0.00068,86796.0,86795.0,0.11184]
[1742886361442,0.1288,86796.0,86795.0,0.11184]
[1742886361643,0.2365,86796.0,86795.0,0.11184]
[1742886361842,0.2365,86796.0,86795.0,0.1112]
[1742886362937,0.2365,86796.0,86795.0,0.11184]
[1742886365739,0.2365,86796.0,86795.0,0.1112]
[1742886366433,0.2926,86796.0,86795.0,0.1112]
[1742886370647,0.31306716,86796.0,86795.0,0.1112]
[1742886371942,0.42826596,86796.0,86795.0,0.1112]
[1742886372345,0.30014596,86796.0,86795.0,0.1112]
[1742886372548,0.42714596,86796.0,86795.0,0.1112]
[1742886373839,0.31194716,86796.0,86795.0,0.1112]
[1742886375251,0.72194716,86796.0,86783.0,0.00046092]
[1742886375450,0.3608,86793.0,86787.0,0.00081284]
[1742886375645,0.02046716,86790.0,86787.0,0.00081284]
[1742886375845,0.1071,86789.0,86787.0,0.00081284]
[1742886376152,0.10778,86789.0,86787.0,0.00081284]
[1742886376547,0.10778,86789.0,86787.0,0.00181284]
[1742886376746,0.02046716,86788.0,86787.0,0.00181284]
[1742886376941,0.02114716,86788.0,86787.0,0.00181284]
[1742886377152,0.12944716,86788.0,86787.0,0.00181284]
[1742886378159,0.24465656,86788.0,86787.0,0.00181284]
[1742886378458,0.24465656,86788.0,86787.0,0.00081284]
[1742886379748,0.24665656,86788.0,86787.0,0.00081284]
[1742886379954,0.24765656,86788.0,86787.0,0.00081284]
[1742886380763,0.26515656,86788.0,86787.0,0.00081284]
[1742886381257,0.26515656,86788.0,86787.0,0.10391284]
[1742886382749,0.43748835,86788.0,86787.0,0.10391284]
[1742886384456,0.31168835,86788.0,86787.0,0.10391284]
[1742886384964,0.13935656,86788.0,86787.0,0.10391284]
[1742886386061,0.13935656,86788.0,86787.0,0.21912354]
[1742886386655,0.13935656,86788.0,86787.0,0.10391284]
[1742886388064,0.13935656,86788.0,86787.0,0.21912354]
[1742886392358,0.31168835,86788.0,86787.0,0.21912354]
[1742886394661,0.31168835,86788.0,86787.0,0.27392354]
[1742886396870,0.13935656,86788.0,86787.0,0.27392354]
[1742886398277,0.02414716,86788.0,86787.0,0.27392354]
[1742886398467,0.3608,86799.0,86787.0,0.27392354]
[1742886398468,0.41,86810.0,86803.0,0.1151895]
[1742886398669,0.00089284,86804.0,86803.0,0.4767095]
[1742886398971,0.11608104,86804.0,86803.0,0.4767095]
[1742886399171,0.00089284,86804.0,86803.0,0.48762653]
[1742886399466,0.00089284,86804.0,86803.0,0.59352653]
[1742886399968,0.11608104,86804.0,86803.0,0.59352653]
[1742886400763,0.11708104,86804.0,86803.0,0.59352653]
[1742886402072,0.00189284,86804.0,86803.0,0.59352653]
[1742886402276,0.00117284,86804.0,86803.0,0.59352653]
[1742886402469,0.11636104,86804.0,86803.0,0.59352653]
[1742886402768,0.00117284,86804.0,86803.0,0.59352653]
[1742886404466,0.11536104,86804.0,86803.0,0.59352653]
[1742886405375,0.00017284,86804.0,86803.0,0.59352653]
[1742886405783,8e-05,86805.0,86804.0,0.1151882]
[1742886405971,0.0575873,86815.0,86811.0,0.1151789]
[1742886406168,0.0575873,86815.0,86811.0,0.4767389]
[1742886406766,0.0575873,86815.0,86811.0,0.5282389]
[1742886406968,0.1152576,86812.0,86811.0,0.6330389]
[1742886407470,0.1159376,86812.0,86811.0,0.6330389]
[1742886414079,0.1159376,86812.0,86811.0,0.46556]
[1742886414578,0.2225376,86812.0,86811.0,0.46556]
[1742886414881,0.2225376,86812.0,86811.0,0.10476]
[1742886415483,0.2225376,86812.0,86811.0,0.2199389]
[1742886417076,0.10736,86812.0,86811.0,0.2199389]
[1742886417379,0.00076,86812.0,86811.0,0.2199389]
[1742886417585,0.0575875,86814.0,86813.0,0.1151749]
[1742886417779,0.0582675,86814.0,86813.0,0.4766549]
[1742886417979,0.1656675,86814.0,86813.0,0.5819549]
[1742886421990,0.10808,86814.0,86813.0,0.5819549]
[1742886422297,0.2225749,86814.0,86813.0,0.5819549]
[1742886422682,0.2232549,86814.0,86813.0,0.5819549]
[1742886423493,0.18647062,86840.0,86813.0,0.97678]
[1742886423793,0.12563455,86840.0,86839.0,0.3608]
[1742886423992,0.12555455,86840.0,86839.0,0.36168]
[1742886424186,0.01137416,86840.0,86839.0,0.4768218]
[1742886424385,0.00953414,86840.0,86839.0,0.4768218]
[1742886424892,0.01045414,86840.0,86839.0,0.4768218]
[1742886425493,0.00953414,86840.0,86839.0,0.4768218]
[1742886426495,0.00953414,86840.0,86839.0,0.48561642]
[1742886426698,0.00953414,86840.0,86839.0,0.54071642]
[1742886427697,0.00953414,86840.0,86839.0,0.55188009]
[1742886428300,0.0562,86842.0,86841.0,0.1151391]
[1742886428497,0.0562,86842.0,86841.0,0.1160591]
[1742886428695,0.05680001,86842.0,86841.0,0.1160591]
[1742886429395,0.0562,86842.0,86841.0,0.1160591]
[1742886430093,0.0562,86842.0,86841.0,0.00092]
[1742886430305,0.17193781,86842.0,86841.0,0.00092]
[1742886431998,0.1151404,86840.0,86839.0,0.01116367]
[1742886432200,0.1151486,86834.0,86831.0,0.11532463]
[1742886432395,0.1158286,86834.0,86831.0,0.11600443]
[1742886432892,0.00068,86834.0,86833.0,0.1151497]
[1742886433199,0.00068,86834.0,86833.0,0.12443303]
[1742886433393,0.12192,86840.0,86836.0,0.1151446]
[1742886433598,0.00060001,86840.0,86837.0,0.0575717]
[1742886433792,0.12256001,86840.0,86839.0,0.1151418]
[1742886433994,0.12256001,86840.0,86839.0,0.1158218]
[1742886434486,0.12256001,86840.0,86839.0,0.1668218]
[1742886434995,0.00060001,86840.0,86839.0,0.1668218]
[1742886435188,0.10680001,86840.0,86839.0,0.1668218]
[1742886439396,0.05520001,86840.0,86839.0,0.1668218]
[1742886440003,0.11000001,86840.0,86839.0,0.1668218]
[1742886442096,0.11000001,86840.0,86839.0,0.2193218]
[1742886443405,0.1094,86840.0,86839.0,0.2193218]
[1742886444103,0.1094,86840.0,86839.0,0.5801218]
[1742886444499,8e-05,86842.0,86841.0,0.1151391]
[1742886444703,0.1082,86855.0,86854.0,0.1151219]
[1742886444909,0.10880001,86855.0,86854.0,0.1151219]
[1742886445111,0.10880001,86855.0,86854.0,0.1157219]
[1742886445509,0.10880001,86855.0,86854.0,0.12689023]
[1742886449212,0.1082,86855.0,86854.0,0.12689023]
[1742886451126,0.0525,86855.0,86854.0,0.12689023]
[1742886451521,0.1049,86855.0,86854.0,0.12689023]
[1742886453436,0.1049,86855.0,86854.0,0.24757023]
[1742886455028,0.1049,86855.0,86854.0,0.12689023]
[1742886462236,0.1601,86855.0,86854.0,0.12689023]
[1742886463335,0.16070001,86855.0,86854.0,0.12689023]
[1742886463840,0.1601,86855.0,86854.0,0.12689023]
[1742886464735,0.16074,86855.0,86854.0,0.12689023]
[1742886467743,0.1601,86855.0,86854.0,0.12689023]
[1742886467943,0.16074,86855.0,86854.0,0.12689023]
[1742886468450,0.2758605,86855.0,86854.0,0.01176833]
[1742886468938,0.2758605,86855.0,86854.0,0.12629023]
[1742886469249,0.16074,86855.0,86854.0,0.1157219]
[1742886469641,0.2758605,86855.0,86854.0,0.1157219]
[1742886470646,0.2758605,86855.0,86854.0,0.12660044]
[1742886472642,0.2758605,86855.0,86854.0,0.01147854]
[1742886477343,0.2758605,86855.0,86854.0,0.12660044]
[1742886478851,0.2758605,86855.0,86854.0,0.01147854]
[1742886480750,0.2758605,86855.0,86854.0,0.06777854]
[1742886481250,0.2758605,86855.0,86854.0,0.12660044]
[1742886481852,0.2758605,86855.0,86854.0,0.18200044]
[1742886482055,0.2758605,86855.0,86854.0,0.06687854]
[1742886482255,0.2758605,86855.0,86854.0,0.01147854]
[1742886482951,0.1151404,86840.0,86839.0,0.20628134]
[1742886483149,0.1151404,86840.0,86839.0,0.21829015]
[1742886483453,0.1151404,86840.0,86835.0,0.27518633]
[1742886483454,0.1151457,86836.0,86835.0,0.20199514]
[1742886483658,0.11610571,86836.0,86835.0,0.20259514]
[1742886484752,0.11610571,86836.0,86835.0,0.21367218]
[1742886486665,0.22340571,86836.0,86835.0,0.21367218]
[1742886487852,0.22340571,86836.0,86835.0,0.01167704]
[1742886488152,0.22340571,86836.0,86835.0,0.01107704]
[1742886488451,0.1151497,86833.0,86832.0,0.0529]
[1742886488659,0.11618971,86833.0,86832.0,0.0529]
[1742886489260,0.34390971,86833.0,86832.0,0.0529]
[1742886489850,0.34390971,86833.0,86832.0,0.0539]
[1742886490252,0.34390971,86833.0,86832.0,0.06589053]
[1742886492168,0.34370971,86833.0,86832.0,0.06589053]
[1742886492363,0.34370971,86833.0,86832.0,0.11979053]
[1742886492863,0.34370971,86833.0,86832.0,0.12043053]
[1742886493068,0.34370971,86833.0,86832.0,0.48123053]
[1742886493370,0.34370971,86833.0,86832.0,0.12043053]
[1742886496066,0.34370971,86833.0,86832.0,0.11979053]
[1742886496374,0.34370971,86833.0,86832.0,0.12039053]
[1742886496572,0.34370971,86833.0,86832.0,0.11979053]
[1742886497873,0.34370971,86833.0,86832.0,0.12039053]
[1742886499269,0.34370971,86833.0,86832.0,0.11979053]
[1742886499777,0.34370971,86833.0,86832.0,0.12039053]
[1742886502778,0.34306971,86833.0,86832.0,0.12039053]
[1742886504884,0.34306971,86833.0,86832.0,0.11979053]
[1742886505174,0.34306971,86833.0,86832.0,0.12047053]
[1742886505576,0.34306971,86833.0,86832.0,0.11979053]
[1742886505782,0.34306971,86833.0,86832.0,0.12039053]
[1742886506870,0.115159,86826.0,86825.0,0.3608]
[1742886507068,0.115159,86826.0,86825.0,0.37216835]
[1742886507569,0.11611901,86826.0,86825.0,0.37280835]
[1742886507765,0.115159,86826.0,86825.0,0.37216835]
[1742886508176,0.171259,86826.0,86825.0,0.37216835]
[1742886508380,0.171259,86826.0,86825.0,0.37416835]
[1742886509676,0.171259,86826.0,86825.0,0.37616835]
[1742886510975,0.171259,86826.0,86825.0,0.43156835]
[1742886512584,0.17229901,86826.0,86825.0,0.43224835]
[1742886516588,0.17229901,86826.0,86825.0,0.07144835]
[1742886536311,0.17229901,86826.0,86825.0,0.06008]
[1742886536513,0.1151696,86818.0,86817.0,0.00017273]
[1742886536813,0.2317696,86818.0,86817.0,0.00017273]
[1742886537013,0.2317696,86818.0,86812.0,0.1043]
[1742886537014,0.1151723,86816.0,86812.0,0.1043]
[1742886537204,0.47717231,86816.0,86802.0,0.3608]
[1742886537519,0.1151882,86804.0,86803.0,0.051]
[1742886537815,0.23182821,86804.0,86803.0,0.0516]
[1742886538410,0.34012821,86804.0,86803.0,0.0516]
[1742886538814,0.34104821,86804.0,86803.0,0.0516]
[1742886539715,0.34304821,86804.0,86803.0,0.06305385]
[1742886539915,0.34304821,86804.0,86803.0,0.06245385]
[1742886542520,0.34304821,86804.0,86803.0,0.06309385]
[1742886542818,0.34304821,86804.0,86803.0,0.06245385]
[1742886544218,0.34304821,86804.0,86803.0,0.06313385]
[1742886544614,0.34304821,86804.0,86803.0,0.06245385]
[1742886544915,0.22768821,86804.0,86803.0,0.06305385]
[1742886545214,0.34292821,86804.0,86803.0,0.06305385]
[1742886545417,0.34292821,86804.0,86803.0,0.06245385]
[1742886546926,0.22768821,86804.0,86803.0,0.06245385]
[1742886547216,0.34276821,86804.0,86803.0,0.06245385]
[1742886549925,0.34276821,86804.0,86803.0,0.06305385]
[1742886550222,0.34276821,86804.0,86803.0,0.06245385]
[1742886551726,0.34276821,86804.0,86803.0,0.06309385]
[1742886552117,0.22768821,86804.0,86803.0,0.06309385]
[1742886552322,0.34252821,86804.0,86803.0,0.06245385]
[1742886553021,0.34252821,86804.0,86803.0,0.06305385]
[1742886557230,0.34252821,86804.0,86803.0,0.06245385]
[1742886557931,0.34252821,86804.0,86803.0,0.06305385]
[1742886558328,0.34252821,86804.0,86803.0,0.06245385]
[1742886560227,0.34252821,86804.0,86803.0,0.06305385]
[1742886562424,0.34252821,86804.0,86803.0,0.04845385]
[1742886563833,0.34200821,86804.0,86803.0,0.04845385]
[1742886584445,0.22768821,86804.0,86803.0,0.04845385]
[1742886584637,0.34176821,86804.0,86803.0,0.04845385]
[1742886585937,0.00420001,86804.0,86803.0,0.16364335]
[1742886586139,0.003,86804.0,86803.0,0.16364335]
[1742886586445,0.00017273,86812.0,86811.0,0.1151789]
[1742886586648,0.00133273,86812.0,86811.0,0.1157789]
[1742886588051,0.00433273,86812.0,86811.0,0.1157789]
[1742886589050,0.00317273,86812.0,86811.0,0.0006]
[1742886589437,0.00317273,86812.0,86811.0,0.0557]
[1742886589942,0.00217273,86812.0,86811.0,0.0557]
[1742886590146,0.11143273,86812.0,86811.0,0.0557]
[1742886590661,0.10943273,86812.0,86811.0,0.0557]
[1742886592454,0.11043273,86812.0,86811.0,0.0557]
[1742886594448,0.22561033,86812.0,86811.0,0.0557]
[1742886597945,0.11043273,86812.0,86811.0,0.0557]
[1742886598245,0.11043273,86812.0,86811.0,0.0551]
[1742886598446,0.11043273,86812.0,86811.0,0.05578]
[1742886598955,0.22561033,86812.0,86811.0,0.05578]
[1742886599950,0.11043273,86812.0,86811.0,0.05578]
[1742886602241,0.00333273,86812.0,86811.0,0.05578]
[1742886602443,0.00217273,86812.0,86811.0,0.05578]
[1742886602657,0.00217273,86812.0,86811.0,0.11118]
[1742886602950,1e-08,86812.0,86811.0,0.2263589]
[1742886603252,1e-08,86812.0,86811.0,0.7371589]
[1742886606850,1e-08,86812.0,86811.0,0.62198]
[1742886608458,1e-08,86812.0,86811.0,0.98278]
[1742886609060,1e-08,86812.0,86811.0,1.0979589]
[1742886609559,1e-08,86812.0,86811.0,0.9479589]
[1742886609757,1e-08,86812.0,86811.0,0.83278]
[1742886609758,0.11517761,86812.0,86811.0,0.83278]
[1742886609945,0.27917761,86812.0,86811.0,0.72228]
[1742886610151,0.28037762,86812.0,86811.0,0.36148]
[1742886612061,0.28037762,86812.0,86811.0,0.00068]
[1742886612262,0.1151842,86807.0,86806.0,0.20632746]
[1742886612559,0.1163442,86807.0,86806.0,0.20692746]
[1742886613252,0.2312442,86807.0,86806.0,0.1157855]
[1742886614158,0.2312442,86807.0,86806.0,0.0006]
[1742886614363,0.1151882,86804.0,86803.0,0.01145385]
[1742886614553,0.11642821,86804.0,86803.0,0.00068]
[1742886614751,0.11642821,86804.0,86803.0,0.01186971]
[1742886614955,0.11642821,86804.0,86803.0,0.12705921]
[1742886615155,0.11642821,86804.0,86803.0,0.01186971]
[1742886615757,0.11642821,86804.0,86803.0,0.00068]
[1742886622278,0.47722821,86804.0,86803.0,0.00068]
[1742886622480,0.1151988,86796.0,86795.0,0.00017273]
[1742886622675,0.11639881,86796.0,86795.0,0.00017273]
[1742886623078,0.23129881,86796.0,86795.0,0.00017273]
[1742886623687,0.23129881,86796.0,86795.0,0.00117273]
[1742886625081,0.23129881,86796.0,86795.0,0.00217273]
[1742886627190,0.23129881,86796.0,86795.0,1e-08]
[1742886628284,0.59209881,86796.0,86795.0,1e-08]
[1742886638085,0.70613881,86796.0,86795.0,1e-08]
[1742886639288,0.70613881,86796.0,86795.0,0.05610001]
[1742886641892,0.34533881,86796.0,86795.0,0.05610001]
[1742886654017,0.34533881,86796.0,86795.0,1e-08]
[1742886654205,0.34533881,86796.0,86776.0,0.27539763]
[1742886654206,0.057608,86783.0,86776.0,0.27539763]
[1742886654407,0.476024,86777.0,86776.0,0.27599763]
[1742886654708,0.1152333,86770.0,86769.0,0.34514047]
[1742886655014,0.5912333,86770.0,86769.0,0.34574047]
[1742886655712,0.7063333,86770.0,86769.0,0.34574047]
[1742886655900,0.7073333,86770.0,86769.0,0.34574047]
[1742886656214,0.7273333,86770.0,86769.0,0.34574047]
[1742886656618,0.7283333,86770.0,86769.0,0.34574047]
[1742886657412,0.7283333,86770.0,86769.0,0.0006]
[1742886657712,0.1152347,86769.0,86768.0,0.0542]
[1742886657913,0.1263947,86769.0,86768.0,0.0542]
[1742886658212,0.115236,86768.0,86767.0,0.000461]
[1742886658416,0.116396,86768.0,86767.0,0.000461]
[1742886658619,0.225896,86768.0,86767.0,0.000461]
[1742886660420,0.226896,86768.0,86767.0,0.000461]
[1742886660804,0.227896,86768.0,86767.0,0.000461]
[1742886665107,0.237896,86768.0,86767.0,0.000461]
[1742886667714,0.227896,86768.0,86767.0,0.000461]
[1742886669121,0.257896,86768.0,86767.0,0.000461]
[1742886670914,0.371936,86768.0,86767.0,0.000461]
[1742886673423,0.371936,86768.0,86739.0,0.0576371]
[1742886673424,0.1152572,86752.0,86739.0,0.0576371]
[1742886673617,0.2304572,86752.0,86751.0,0.41664109]
[1742886674319,0.2304572,86752.0,86751.0,0.4279712]
[1742886674621,0.2863572,86752.0,86751.0,0.4309712]
[1742886675619,0.2863572,86752.0,86751.0,0.4339712]
[1742886676818,0.2863572,86752.0,86751.0,0.4880712]
[1742886680921,0.2863572,86752.0,86751.0,0.6033298]
[1742886682126,0.2863572,86752.0,86751.0,0.4880712]
[1742886682924,0.2863572,86752.0,86751.0,0.6033298]
[1742886683522,0.2863572,86752.0,86751.0,0.4880712]
[1742886684524,0.2863572,86752.0,86751.0,0.6033298]
[1742886687437,0.2863572,86752.0,86751.0,0.4880712]
[1742886687626,0.2863572,86752.0,86751.0,0.6033298]
[1742886690030,0.2863972,86752.0,86751.0,0.6033298]
[1742886693741,0.2863972,86752.0,86751.0,0.2425298]
[1742886694131,0.3415972,86752.0,86751.0,0.2425298]
[1742886694430,0.3415972,86752.0,86751.0,0.1272712]
[1742886694932,0.3415972,86752.0,86751.0,0.2425298]
[1742886696346,0.1723172,86752.0,86751.0,0.2425298]
[1742886696531,0.17215089,86753.0,86752.0,0.1152572]
[1742886696842,0.28820679,86753.0,86752.0,0.2209572]
[1742886697536,0.28812679,86753.0,86752.0,0.2209572]
[1742886697743,0.1160559,86753.0,86752.0,0.2239572]
[1742886698740,0.1160559,86753.0,86752.0,0.2269572]
[1742886701836,0.1152559,86753.0,86752.0,0.2269572]
[1742886702039,0.1160559,86753.0,86752.0,0.2269572]
[1742886702544,0.0008,86753.0,86752.0,0.2269572]
[1742886702937,0.0008,86753.0,86752.0,0.5877572]
[1742886704245,0.0008,86753.0,86752.0,0.2269572]
[1742886704447,0.0008,86753.0,86752.0,0.5877572]
[1742886705744,0.0555,86753.0,86752.0,0.5877572]
[1742886706850,0.1707559,86753.0,86752.0,0.5877572]
[1742886707844,0.2275559,86753.0,86752.0,0.5877572]
[1742886708745,0.2275559,86753.0,86752.0,0.4202]
[1742886709142,0.2275559,86753.0,86752.0,0.5354572]
[1742886709743,0.2275559,86753.0,86752.0,0.5922572]
[1742886712846,0.2275559,86753.0,86752.0,0.5892572]
[1742886713250,0.2275559,86753.0,86752.0,0.5862572]
[1742886716657,0.2275559,86753.0,86752.0,0.2254572]
[1742886717451,0.36577238,86753.0,86752.0,0.2254572]
[1742886718851,0.36577238,86753.0,86752.0,0.5862572]
[1742886721259,0.2275559,86753.0,86752.0,0.5862572]
[1742886723159,0.2275559,86753.0,86752.0,0.5294572]
[1742886724554,0.1123,86753.0,86752.0,0.5867572]
[1742886725960,0.2275559,86753.0,86752.0,0.5867572]
[1742886727257,8e-05,86754.0,86753.0,0.1152559]
[1742886727454,8e-05,86754.0,86753.0,0.1158559]
[1742886727659,0.05244,86754.0,86753.0,0.2223559]
[1742886727867,0.10424,86754.0,86753.0,0.2223559]
[1742886728066,0.24246541,86754.0,86753.0,0.2223559]
[1742886728665,0.35772001,86754.0,86753.0,0.2223559]
[1742886729058,0.40982001,86754.0,86753.0,0.2223559]
[1742886729865,0.41082001,86754.0,86753.0,0.1696559]
[1742886730452,0.41082001,86754.0,86753.0,0.2252559]
[1742886730658,0.40982001,86754.0,86753.0,0.2252559]
[1742886731570,0.2715946,86754.0,86753.0,0.2252559]
[1742886732555,0.2715946,86754.0,86753.0,0.1696559]
[1742886734065,0.2725946,86754.0,86753.0,0.1696559]
[1742886734268,0.2725946,86754.0,86753.0,0.0544]
[1742886734567,0.2725946,86754.0,86753.0,0.0006]
[1742886735062,0.1152572,86752.0,86751.0,0.0117912]
[1742886735262,0.1160572,86752.0,86751.0,0.0117912]
[1742886740059,0.1160572,86752.0,86751.0,0.00046109]
[1742886740774,0.1152679,86744.0,86743.0,0.00017284]
[1742886741071,0.1159879,86744.0,86743.0,0.00077284]
[1742886741775,0.2260879,86744.0,86743.0,0.00077284]
[1742886742170,0.2260879,86744.0,86743.0,0.0142412]
[1742886743166,0.2260879,86744.0,86743.0,0.0132412]
[1742886743669,0.2260879,86744.0,86743.0,0.0152412]
[1742886744170,0.2260879,86744.0,86743.0,0.0142412]
[1742886744371,0.36422697,86744.0,86743.0,0.0142412]
[1742886747573,0.2260879,86744.0,86743.0,0.0142412]
[1742886748568,0.2260879,86744.0,86743.0,0.3750412]
[1742886753570,0.2260879,86744.0,86743.0,0.4303412]
[1742886754683,0.36417077,86744.0,86743.0,0.4303412]
[1742886754978,0.36417077,86744.0,86743.0,0.0695412]
[1742886758271,0.2260879,86744.0,86743.0,0.0695412]
[1742886760874,0.2260879,86744.0,86743.0,0.4303412]
[1742886761881,0.2260879,86744.0,86743.0,0.0695412]
[1742886762081,0.2260879,86744.0,86743.0,0.4297412]
[1742886762282,0.2260879,86744.0,86743.0,0.4304212]
[1742886779511,0.2260879,86744.0,86743.0,0.36348]
[1742886779700,0.2260879,86744.0,86711.0,0.01134364]
[1742886779701,0.5763535,86742.0,86711.0,0.01134364]
[1742886779898,0.4761051,86716.0,86715.0,0.41013853]
[1742886780101,0.5903851,86716.0,86715.0,0.41073853]